{"text_format":"1","workbook":"xlsx","n_sheets":7,"sheets":["EXCELeINFO","Orden","Consulta-Factura","Detalle de facturas","TD-Consulta-Factura","Clientes","Producto"],"not_rendered":{"charts":0,"images":2,"macros":1,"external_links":0,"defined_names":15,"comments":2,"pivot_tables":1},"unopened":[],"bounds":{"document_bytes":16777216,"sheet_cells":100000,"rows_first":2000,"rows_last":500,"rows_between":2000,"halvings":0,"cell_chars":16384,"cell_head_chars":4096},"cells_cut":0,"cells_raw":0,"read":"whole","date_system":"1900"}

{"sheet":"EXCELeINFO","index":0,"n_rows":6,"n_cols":2,"rows_kept":6,"cut":false,"hidden":false,"merged":[]}
["Factura en Excel Parte 3 – Imprimir factura y guardar como PDF"]
[null,"Recursos para ser un experto en Excel."]
[null,{"$f":"HYPERLINK(\"https://www.youtube.com/user/sergioacamposh\",\"https://www.youtube.com/user/sergioacamposh\")","v":"https://www.youtube.com/user/sergioacamposh"}]
[null,{"$f":"HYPERLINK(\"http://www.exceleinfo.com\",\"http://www.exceleinfo.com\")","v":"http://www.exceleinfo.com"}]
[null,{"$f":"HYPERLINK(\"http://blogs.itpro.es/exceleinfo\",\"http://blogs.itpro.es/exceleinfo\")","v":"http://blogs.itpro.es/exceleinfo"}]
[null,{"$f":"HYPERLINK(\"http://addin.exceleinfo.com\",\"http://addin.exceleinfo.com\")","v":"http://addin.exceleinfo.com"}]

{"sheet":"Orden","index":1,"n_rows":27,"n_cols":5,"rows_kept":27,"cut":false,"hidden":false,"merged":[[25,1,25,4],[26,1,26,4],[24,1,24,2],[0,0,0,4],[1,2,1,4]]}
[]
[null,null,"ORDEN DE TRABAJO"]
[null,null,null,"FECHA:",{"$f":"TODAY()","v":"2025-02-27"}]
[null,null,null,"ORDEN:",{"$f":"IF('Detalle de facturas'!I1=\"CONSECUTIVO\",1,'Detalle de facturas'!I1+1)","v":10013}]
[null,null,null,"ENTIDAD:","HUMANILAB              "]
[null,"CLIENTE",{"$f":"IFERROR(VLOOKUP(E5,tblClientes[#All],2,0),\"-\")","v":"HUMANILAB, C.A.                                             "}]
[]
[null,"DIRECCION",{"$f":"IFERROR(VLOOKUP(E5,tblClientes[#All],3,0),\"-\")","v":"CALLE SEUL, MANZ 21, CASA N° 7, VILLA ASIA  WHATSAPP 0424-9146558 CORREO: humanilab.ca@gmail.com                                                                                                      "}]
[null,null,{"$f":"IFERROR(VLOOKUP(E5,tblClientes[#All],4,0),\"-\")","v":"PTO ORDAZ EDO.BOLIVAR."}]
[]
[null,"R.I.F. / C.I.:",{"$f":"IFERROR(VLOOKUP(E5,tblClientes[#All],5,0),\"-\")","v":"J315931990  "}]
[null,"CÓDIGO","DESCRIPCIÓN","CANTIDAD","IMPORTE"]
[null,1002,{"$f":"IFERROR(VLOOKUP(Factura[[#This Row],[CÓDIGO]],tblProductos[#All],2,0),\"\")","v":"INSTALACION Y CONFIGURACION DE ESTACION DE TRABAJO"},1,{"$f":"IFERROR(Factura[[#This Row],[CANTIDAD]]*VLOOKUP(Factura[[#This Row],[CÓDIGO]],tblProductos[#All],3,0),\"\")","v":30}]
[null,1001,null,2,{"$f":"IFERROR(Factura[[#This Row],[CANTIDAD]]*VLOOKUP(Factura[[#This Row],[CÓDIGO]],tblProductos[#All],3,0),\"\")","v":40}]
[null,null,{"$f":"IFERROR(VLOOKUP(Factura[[#This Row],[CÓDIGO]],tblProductos[#All],2,0),\"\")","v":""},null,{"$f":"IFERROR(Factura[[#This Row],[CANTIDAD]]*VLOOKUP(Factura[[#This Row],[CÓDIGO]],tblProductos[#All],3,0),\"\")","v":""}]
[null,null,{"$f":"IFERROR(VLOOKUP(Factura[[#This Row],[CÓDIGO]],tblProductos[#All],2,0),\"\")","v":""},null,{"$f":"IFERROR(Factura[[#This Row],[CANTIDAD]]*VLOOKUP(Factura[[#This Row],[CÓDIGO]],tblProductos[#All],3,0),\"\")","v":""}]
[null,null,{"$f":"IFERROR(VLOOKUP(Factura[[#This Row],[CÓDIGO]],tblProductos[#All],2,0),\"\")","v":""},null,{"$f":"IFERROR(Factura[[#This Row],[CANTIDAD]]*VLOOKUP(Factura[[#This Row],[CÓDIGO]],tblProductos[#All],3,0),\"\")","v":""}]
[null,null,{"$f":"IFERROR(VLOOKUP(Factura[[#This Row],[CÓDIGO]],tblProductos[#All],2,0),\"\")","v":""},null,{"$f":"IFERROR(Factura[[#This Row],[CANTIDAD]]*VLOOKUP(Factura[[#This Row],[CÓDIGO]],tblProductos[#All],3,0),\"\")","v":""}]
[null,null,null,null,{"$f":"IFERROR(Factura[[#This Row],[CANTIDAD]]*VLOOKUP(Factura[[#This Row],[CÓDIGO]],tblProductos[#All],3,0),\"\")","v":""}]
[null,null,{"$f":"IFERROR(VLOOKUP(Factura[[#This Row],[CÓDIGO]],tblProductos[#All],2,0),\"\")","v":""},null,{"$f":"IFERROR(Factura[[#This Row],[CANTIDAD]]*VLOOKUP(Factura[[#This Row],[CÓDIGO]],tblProductos[#All],3,0),\"\")","v":""}]
[null,null,{"$f":"IFERROR(VLOOKUP(Factura[[#This Row],[CÓDIGO]],tblProductos[#All],2,0),\"\")","v":""},null,{"$f":"IFERROR(Factura[[#This Row],[CANTIDAD]]*VLOOKUP(Factura[[#This Row],[CÓDIGO]],tblProductos[#All],3,0),\"\")","v":""}]
[null,null,{"$f":"IFERROR(VLOOKUP(Factura[[#This Row],[CÓDIGO]],tblProductos[#All],2,0),\"\")","v":""},null,{"$f":"SUM(E13:E21)","v":70}]
[null,null,{"$f":"IFERROR(VLOOKUP(Factura[[#This Row],[CÓDIGO]],tblProductos[#All],2,0),\"\")","v":""}]
[null,"TASA:","BCV","  TOTAL: ",{"$f":"E22+E23","v":70}]
[null,"OBSERVACIONES"]
[]
[null,"PAGO MOVIL: 0414-865-7889 16.142.026 BANESCO "]

{"sheet":"Consulta-Factura","index":2,"n_rows":27,"n_cols":5,"rows_kept":27,"cut":false,"hidden":false,"merged":[[0,3,0,4],[24,1,24,2],[25,1,25,4],[26,1,26,4]]}
[null,"Mi Empresa",null,"FACTURA"]
[null,"Los clientes no son lo primero, lo primero son los empleados, si cuidas a tus empleados, ellos cuidarán de tus clientes - Richard Branson."]
[null,"La dirección de tu empresa",null,"FECHA:",{"$f":"INDEX(tblDetalle[#All],MATCH('Consulta-Factura'!E4,tblDetalle[[#All],[CONSECUTIVO]],0),1)","v":"2018-08-28"}]
[null,"Ciudad, estado/provincia y código postal",null,"N.º DE FACTURA",1]
[null,"[Número de] teléfono   [Número de] fax",null,"PARA:","Descripción del proyecto o servicio"]
[null,"Facturar a:",null,null,{"$f":"VLOOKUP(E4,tblDetalle[[#All],[CONSECUTIVO]:[NOMBRE_ARCHIVO]],7,0)","v":"C:\\Users\\scampos\\Documents\\exceleinfo_pruebas\\Factura-1.pdf"}]
[null,{"$f":"VLOOKUP(E4,tblDetalle[[#All],[CONSECUTIVO]:[IMPORTE]],2,0)","v":"Cliente 9"}]
[null,{"$f":"IFERROR(VLOOKUP(B7,tblClientes[#All],2,0),\"-\")","v":"Empresa 9"}]
[null,{"$f":"IFERROR(VLOOKUP(B7,tblClientes[#All],3,0),\"-\")","v":"Direccion 9"}]
[null,{"$f":"IFERROR(VLOOKUP(B7,tblClientes[#All],4,0),\"-\")","v":"Ciudad 9"}]
[null,{"$f":"IFERROR(VLOOKUP(B7,tblClientes[#All],5,0),\"-\")","v":"Telefono 9"}]
[null,"CÓDIGO","DESCRIPCIÓN","CANTIDAD","IMPORTE"]
[null,{"$f":"IF($E$4='TD-Consulta-Factura'!A4,'TD-Consulta-Factura'!B4,\"-\")","v":1001},{"$f":"IFERROR(VLOOKUP(Factura6[[#This Row],[CÓDIGO]],tblProductos[#All],2,0),\"\")","v":"ASISTENCIA TECNICA REVISION DE ESTACION DE TRABAJO PC"},{"$f":"IF($E$4='TD-Consulta-Factura'!A4,'TD-Consulta-Factura'!C4,\"-\")","v":2},{"$f":"IFERROR(Factura6[[#This Row],[CANTIDAD]]*VLOOKUP(Factura6[[#This Row],[CÓDIGO]],tblProductos[#All],3,0),\"\")","v":40}]
[null,{"$f":"IF($E$4='TD-Consulta-Factura'!A5,'TD-Consulta-Factura'!B5,\"-\")","v":1002},{"$f":"IFERROR(VLOOKUP(Factura6[[#This Row],[CÓDIGO]],tblProductos[#All],2,0),\"\")","v":"INSTALACION Y CONFIGURACION DE ESTACION DE TRABAJO"},{"$f":"IF($E$4='TD-Consulta-Factura'!A5,'TD-Consulta-Factura'!C5,\"-\")","v":5},{"$f":"IFERROR(Factura6[[#This Row],[CANTIDAD]]*VLOOKUP(Factura6[[#This Row],[CÓDIGO]],tblProductos[#All],3,0),\"\")","v":150}]
[null,{"$f":"IF($E$4='TD-Consulta-Factura'!A6,'TD-Consulta-Factura'!B6,\"-\")","v":"-"},{"$f":"IFERROR(VLOOKUP(Factura6[[#This Row],[CÓDIGO]],tblProductos[#All],2,0),\"\")","v":""},{"$f":"IF($E$4='TD-Consulta-Factura'!A6,'TD-Consulta-Factura'!C6,\"-\")","v":"-"},{"$f":"IFERROR(Factura6[[#This Row],[CANTIDAD]]*VLOOKUP(Factura6[[#This Row],[CÓDIGO]],tblProductos[#All],3,0),\"\")","v":""}]
[null,{"$f":"IF($E$4='TD-Consulta-Factura'!A7,'TD-Consulta-Factura'!B7,\"-\")","v":"-"},{"$f":"IFERROR(VLOOKUP(Factura6[[#This Row],[CÓDIGO]],tblProductos[#All],2,0),\"\")","v":""},{"$f":"IF($E$4='TD-Consulta-Factura'!A7,'TD-Consulta-Factura'!C7,\"-\")","v":"-"},{"$f":"IFERROR(Factura6[[#This Row],[CANTIDAD]]*VLOOKUP(Factura6[[#This Row],[CÓDIGO]],tblProductos[#All],3,0),\"\")","v":""}]
[null,{"$f":"IF($E$4='TD-Consulta-Factura'!A8,'TD-Consulta-Factura'!B8,\"-\")","v":"-"},{"$f":"IFERROR(VLOOKUP(Factura6[[#This Row],[CÓDIGO]],tblProductos[#All],2,0),\"\")","v":""},{"$f":"IF($E$4='TD-Consulta-Factura'!A8,'TD-Consulta-Factura'!C8,\"-\")","v":"-"},{"$f":"IFERROR(Factura6[[#This Row],[CANTIDAD]]*VLOOKUP(Factura6[[#This Row],[CÓDIGO]],tblProductos[#All],3,0),\"\")","v":""}]
[null,{"$f":"IF($E$4='TD-Consulta-Factura'!A9,'TD-Consulta-Factura'!B9,\"-\")","v":"-"},{"$f":"IFERROR(VLOOKUP(Factura6[[#This Row],[CÓDIGO]],tblProductos[#All],2,0),\"\")","v":""},{"$f":"IF($E$4='TD-Consulta-Factura'!A9,'TD-Consulta-Factura'!C9,\"-\")","v":"-"},{"$f":"IFERROR(Factura6[[#This Row],[CANTIDAD]]*VLOOKUP(Factura6[[#This Row],[CÓDIGO]],tblProductos[#All],3,0),\"\")","v":""}]
[null,{"$f":"IF($E$4='TD-Consulta-Factura'!A10,'TD-Consulta-Factura'!B10,\"-\")","v":"-"},{"$f":"IFERROR(VLOOKUP(Factura6[[#This Row],[CÓDIGO]],tblProductos[#All],2,0),\"\")","v":""},{"$f":"IF($E$4='TD-Consulta-Factura'!A10,'TD-Consulta-Factura'!C10,\"-\")","v":"-"},{"$f":"IFERROR(Factura6[[#This Row],[CANTIDAD]]*VLOOKUP(Factura6[[#This Row],[CÓDIGO]],tblProductos[#All],3,0),\"\")","v":""}]
[null,{"$f":"IF($E$4='TD-Consulta-Factura'!A11,'TD-Consulta-Factura'!B11,\"-\")","v":"-"},{"$f":"IFERROR(VLOOKUP(Factura6[[#This Row],[CÓDIGO]],tblProductos[#All],2,0),\"\")","v":""},{"$f":"IF($E$4='TD-Consulta-Factura'!A11,'TD-Consulta-Factura'!C11,\"-\")","v":"-"},{"$f":"IFERROR(Factura6[[#This Row],[CANTIDAD]]*VLOOKUP(Factura6[[#This Row],[CÓDIGO]],tblProductos[#All],3,0),\"\")","v":""}]
[null,{"$f":"IF($E$4='TD-Consulta-Factura'!A12,'TD-Consulta-Factura'!B12,\"-\")","v":"-"},{"$f":"IFERROR(VLOOKUP(Factura6[[#This Row],[CÓDIGO]],tblProductos[#All],2,0),\"\")","v":""},{"$f":"IF($E$4='TD-Consulta-Factura'!A12,'TD-Consulta-Factura'!C12,\"-\")","v":"-"},{"$f":"IFERROR(Factura6[[#This Row],[CANTIDAD]]*VLOOKUP(Factura6[[#This Row],[CÓDIGO]],tblProductos[#All],3,0),\"\")","v":""}]
[null,{"$f":"IF($E$4='TD-Consulta-Factura'!A13,'TD-Consulta-Factura'!B13,\"-\")","v":"-"},{"$f":"IFERROR(VLOOKUP(Factura6[[#This Row],[CÓDIGO]],tblProductos[#All],2,0),\"\")","v":""},{"$f":"IF($E$4='TD-Consulta-Factura'!A13,'TD-Consulta-Factura'!C13,\"-\")","v":"-"},{"$f":"IFERROR(Factura6[[#This Row],[CANTIDAD]]*VLOOKUP(Factura6[[#This Row],[CÓDIGO]],tblProductos[#All],3,0),\"\")","v":""}]
[null,{"$f":"IF($E$4='TD-Consulta-Factura'!A14,'TD-Consulta-Factura'!B14,\"-\")","v":"-"},{"$f":"IFERROR(VLOOKUP(Factura6[[#This Row],[CÓDIGO]],tblProductos[#All],2,0),\"\")","v":""},{"$f":"IF($E$4='TD-Consulta-Factura'!A14,'TD-Consulta-Factura'!C14,\"-\")","v":"-"},{"$f":"IFERROR(Factura6[[#This Row],[CANTIDAD]]*VLOOKUP(Factura6[[#This Row],[CÓDIGO]],tblProductos[#All],3,0),\"\")","v":""}]
[null,null,null,"TOTAL",{"$f":"SUBTOTAL(109,Factura6[IMPORTE])","v":190}]
[null,{"$f":"\"Establezca que todos los cheques se paguen a \"&Nombre_empresa&\"\"","v":"Establezca que todos los cheques se paguen a Mi Empresa"}]
[null,"Si tiene cualquier tipo de pregunta acerca de esta factura, póngase en contacto con Nombre, Número de teléfono o Correo electrónico"]
[null,"GRACIAS POR SU CONFIANZA "]

{"sheet":"Detalle de facturas","index":3,"n_rows":63,"n_cols":9,"rows_kept":63,"cut":false,"hidden":false,"merged":[]}
["FECHA","CONSECUTIVO","FACTURADO A","CODIGO","DESCRIPCION","CANTIDAD","IMPORTE","NOMBRE_ARCHIVO","10012"]
["2018-08-28",1,"Cliente 9",1001,"Producto 1",2,498,"C:\\Users\\scampos\\Documents\\exceleinfo_pruebas\\Factura-1.pdf"]
["2018-08-28",1,"Cliente 9",1002,"Producto 2",5,555,"C:\\Users\\scampos\\Documents\\exceleinfo_pruebas\\Factura-1.pdf"]
["2018-08-28",2,"Cliente 10",1003,"Producto 3",6,2640,"C:\\Users\\scampos\\Documents\\exceleinfo_pruebas\\Factura-2.pdf"]
["2018-08-28",2,"Cliente 10",1004,"Producto 4",7,1435,"C:\\Users\\scampos\\Documents\\exceleinfo_pruebas\\Factura-2.pdf"]
["2018-09-01",3,"Cliente 2",1003,"Producto 3",2,880,"C:\\Users\\scampos\\Documents\\exceleinfo_pruebas\\Factura-3.pdf"]
["2018-09-01",4,"Cliente 2",1003,"Producto 3",2,880,"C:\\Users\\scampos\\Documents\\exceleinfo_pruebas\\Factura-4.pdf"]
["2018-09-01",5,"Cliente 2",1003,"Producto 3",2,880,"C:\\Users\\scampos\\Documents\\exceleinfo_pruebas\\Factura-5.pdf"]
["2018-09-02",6,"Cliente 3",1001,"Producto 1",1,249,"C:\\Users\\scampos\\Documents\\exceleinfo_pruebas\\Factura-6.pdf"]
["2018-09-02",6,"Cliente 3",1002,"Producto 2",2,222,"C:\\Users\\scampos\\Documents\\exceleinfo_pruebas\\Factura-6.pdf"]
["2018-09-02",6,"Cliente 3",1003,"Producto 3",3,1320,"C:\\Users\\scampos\\Documents\\exceleinfo_pruebas\\Factura-6.pdf"]
["2018-09-04",7,"Cliente 3",1001,"Producto 1",1,249,"C:\\Users\\scampos\\Documents\\exceleinfo_pruebas\\Factura-7.pdf"]
["2018-09-04",7,"Cliente 3",1002,"Producto 2",2,222,"C:\\Users\\scampos\\Documents\\exceleinfo_pruebas\\Factura-7.pdf"]
["2018-09-04",7,"Cliente 3",1003,"Producto 3",3,1320,"C:\\Users\\scampos\\Documents\\exceleinfo_pruebas\\Factura-7.pdf"]
["2018-09-04",8,"Cliente 3",1001,"Producto 1",1,249,"C:\\Users\\scampos\\Documents\\exceleinfo_pruebas\\Factura-8.pdf"]
["2018-09-04",8,"Cliente 3",1002,"Producto 2",2,222,"C:\\Users\\scampos\\Documents\\exceleinfo_pruebas\\Factura-8.pdf"]
["2018-09-04",8,"Cliente 3",1003,"Producto 3",3,1320,"C:\\Users\\scampos\\Documents\\exceleinfo_pruebas\\Factura-8.pdf"]
["2018-09-04",8,"Cliente 3",1004,"Producto 4",4,820,"C:\\Users\\scampos\\Documents\\exceleinfo_pruebas\\Factura-8.pdf"]
["2018-09-09",9,"Cliente 3",1001,"Producto 1",2,498,"C:\\Users\\scampos\\Documents\\exceleinfo_pruebas\\Factura-9.pdf"]
["2024-05-16",10,"Cliente 3",1001,"Producto 1",2,498,"C:\\Users\\Usuario\\Documents\\NOTAS DE ENTREGA\\Facturas\\Factura-10.pdf"]
["2024-05-16",11,"Angi",1003,"Producto 3",5,2200,"C:\\Users\\Usuario\\Downloads\\Factura-11.pdf"]
["2024-05-16",11,"Angi",1004,"Producto 4",10,2050,"C:\\Users\\Usuario\\Downloads\\Factura-11.pdf"]
["2024-05-16",11,"Angi",1004,"Producto 4",30,6150,"C:\\Users\\Usuario\\Downloads\\Factura-11.pdf"]
["2024-05-16",12,"Angi",1003,"Producto 3",5,2200,"C:\\Users\\Usuario\\Downloads\\Factura-12.pdf"]
["2024-05-16",12,"Angi",1004,"Producto 4",10,2050,"C:\\Users\\Usuario\\Downloads\\Factura-12.pdf"]
["2024-05-16",12,"Angi",1004,"Producto 4",30,6150,"C:\\Users\\Usuario\\Downloads\\Factura-12.pdf"]
["2024-05-16",0,"Angi",1003,"Producto 3",5,2200,"C:\\Users\\Usuario\\Downloads\\Factura-0.pdf"]
["2024-05-16",0,"Angi",1004,"Producto 4",10,2050,"C:\\Users\\Usuario\\Downloads\\Factura-0.pdf"]
["2024-05-16",0,"Angi",1004,"Producto 4",30,6150,"C:\\Users\\Usuario\\Downloads\\Factura-0.pdf"]
["2024-05-16",0,"Angi",1003,"Producto 3",5,2200,"C:\\Users\\Usuario\\Downloads\\Factura-0.pdf"]
["2024-05-16",0,"Angi",1004,"Producto 4",10,2050,"C:\\Users\\Usuario\\Downloads\\Factura-0.pdf"]
["2024-05-16",0,"Angi",1004,"Producto 4",30,6150,"C:\\Users\\Usuario\\Downloads\\Factura-0.pdf"]
["2024-05-16",0,"Angi",1004,"Producto 4",1,205,"C:\\Users\\Usuario\\Downloads\\Factura-0.pdf"]
["2024-05-16",0,"Angi",1005,"Producto 5",20,8020,"C:\\Users\\Usuario\\Downloads\\Factura-0.pdf"]
["2024-05-16",0,"Angi",1008,"Producto 8",10,4120,"C:\\Users\\Usuario\\Downloads\\Factura-0.pdf"]
["2024-05-20",0,"Angi",1001,"ASISTENCIA TECNICA ",1,30,"C:\\Users\\Usuario\\Downloads\\Factura-0.pdf"]
["2024-05-20",0,"Angi",1001,"ASISTENCIA TECNICA ",1,30,"C:\\Users\\Usuario\\Downloads\\Factura-0.pdf"]
["2024-05-23",0,"Angi",1001,"ASISTENCIA TECNICA ",1,30,"C:\\Users\\Usuario\\Downloads\\Factura-0.pdf"]
["2024-05-23",0,"Angi",1001,"ASISTENCIA TECNICA ",1,30,"C:\\Users\\Usuario\\Downloads\\Factura-0.pdf"]
["2024-05-23",0,"Angi",1001,"ASISTENCIA TECNICA ",1,30,"C:\\Users\\Usuario\\Downloads\\Factura-0.pdf"]
["2024-05-23",0,"Angi",1001,"ASISTENCIA TECNICA ",1,30,"C:\\Users\\Usuario\\Downloads\\Factura-0.pdf"]
["2024-05-23",0,"Angi",1001,"ASISTENCIA TECNICA ",1,30,"C:\\Users\\Usuario\\Downloads\\Factura-0.pdf"]
["2024-05-23",0,"Angi",1001,"ASISTENCIA TECNICA ",1,30,"C:\\Users\\Usuario\\Downloads\\Factura-0.pdf"]
["2024-05-23",0,"Angi",1001,"ASISTENCIA TECNICA ",1,30,"C:\\Users\\Usuario\\Downloads\\Factura-0.pdf"]
["2024-05-23",0,"Angi",1001,"ASISTENCIA TECNICA ",1,30,"C:\\Users\\Usuario\\Downloads\\Factura-0.pdf"]
["2024-05-23",0,"Angi",1001,"ASISTENCIA TECNICA ",1,30,"C:\\Users\\Usuario\\Downloads\\Factura-0.pdf"]
["2024-05-23",0,"Angi",1001,"ASISTENCIA TECNICA ",1,30,"\\Factura-0.pdf"]
["2024-05-23",101,"Angi",1001,"ASISTENCIA TECNICA ",1,30,"\\Factura-101.pdf"]
["2024-05-23",101,"Angi",1001,"ASISTENCIA TECNICA ",1,30,"\\Factura-101.pdf"]
["2024-05-23",101,"Angi",1001,"ASISTENCIA TECNICA ",1,30,"\\Factura-101.pdf"]
["2024-05-23",101,"Angi",1001,"ASISTENCIA TECNICA ",1,30,"\\Factura-101.pdf"]
["2024-05-23",101,"Angi",1001,"ASISTENCIA TECNICA ETACION DE TRABAJO DIRECCION: EL PC NO INICIA: Fallas con el  ",1,2197.1999999999998,"C:\\Users\\Usuario\\Downloads\\Factura-101.pdf"]
["2024-05-23",101,"Angi",null,"Disco duro y la memoria ram. Se colco un ",null,"","C:\\Users\\Usuario\\Downloads\\Factura-101.pdf"]
["2024-05-23",101,"Angi",1001,"ASISTENCIA TECNICA ETACION DE TRABAJO DIRECCION: EL PC NO INICIA: Fallas con el  ",1,2197.1999999999998,"\\Factura-101.pdf"]
["2024-05-23",101,"Angi",null,"Disco duro y la memoria ram. Se colco un ",null,"","\\Factura-101.pdf"]
["2024-05-23",101,"Angi",1001,"ASISTENCIA TECNICA ETACION DE TRABAJO DIRECCION: EL PC NO INICIA: Fallas con el  ",1,2197.1999999999998,"\\Factura-101.pdf"]
["2024-05-23",101,"Angi",null,"Disco duro y la memoria ram. Se colco un ",null,"","\\Factura-101.pdf"]
["2024-05-23",101,"Angi",1001,"ASISTENCIA TECNICA ETACION DE TRABAJO DIRECCION: EL PC NO INICIA: Fallas con el  ",1,2197.1999999999998,"\\Factura-101.pdf"]
["2024-05-23",101,"Angi",null,"Disco duro y la memoria ram. Se colco un ",null,"","\\Factura-101.pdf"]
["2024-05-23",101,"Angi",1001,"ASISTENCIA TECNICA ETACION DE TRABAJO DIRECCION: EL PC NO INICIA: Fallas con el  ",1,2197.1999999999998,"C:\\Users\\Usuario\\Downloads\\Factura-101.pdf"]
["2024-05-23",101,"Angi",null,"Disco duro y la memoria ram. Se colco un ",null,"","C:\\Users\\Usuario\\Downloads\\Factura-101.pdf"]
["2024-06-14",10011,"Imilab",1003,"ASISTENCIA TECNICA ETACION DE TRABAJO DIRECCION: EL PC NO INICIA: Fallas con el  ",1,728.40000000000009,"C:\\Users\\Usuario\\Downloads\\Factura-10011.pdf"]
["2024-06-14",10011,"Imilab",1003,"ASISTENCIA TECNICA MANTENIMIENTO PRECENTIVO DE HARDWARE PC ALL IN ONE",1,728.40000000000009,"C:\\Users\\Usuario\\Downloads\\Factura-10011.pdf"]

{"sheet":"TD-Consulta-Factura","index":4,"n_rows":5,"n_cols":3,"rows_kept":5,"cut":false,"hidden":false,"merged":[]}
[]
[]
["CONSECUTIVO","CODIGO","CANTIDAD"]
[1,1001,2]
[1,1002,5]

{"sheet":"Clientes","index":5,"n_rows":15,"n_cols":5,"rows_kept":15,"cut":false,"hidden":false,"merged":[]}
["NOMBRE","NOMBRE DE LA EMPRESA","DIRECCION","CIUDAD, ESTADO, CP","TELEFONO"]
["Angi","LABORATORIO CLINCO ANGI, C.A","CALLE LA PAZ  C/ AV. VENEZUELA, EDIF. TORRE ANGI, PISO P.B. LOCAL E-F, SECTOR VILLA BOLIVIA","PUERTO ORDAZ- CIUDAD GUAYANA                                                                                             ","J-09512987-0 "]
["Imdigo","INSTITUTO MICROBIOLOGICO DIAGNOSTICO GRUPO ORIENTE C.A.     ","Av. Siegert, Centro Medico Orinoco, Panta Baja.                                                                                                      ","Cd. Bolivar, Edo. Bolívar                    ","J-29608882-9 "]
["Imilab","IMILAB LABORATORIO CLINICO ESPECIALIZADO, C.A.","CENTRO COMERCIAL PARQUE DEL CENTRO, PLANTA BAJA, LOCAL 4L-2","PTO ORDAZ","J-31392251-0"]
["Biobacter","LABORATORIO BIOBACTER, C.A","CONSULTORIO 21 TORRE 3 CHILEMEX FRENTE AL GIMNASION SPORT CITY","PUERTO ORDAZ- CIUDAD GUAYANA                                                                                             ","J-40382988-8"]
["HUMANILAB              ","HUMANILAB, C.A.                                             ","CALLE SEUL, MANZ 21, CASA N° 7, VILLA ASIA  WHATSAPP 0424-9146558 CORREO: humanilab.ca@gmail.com                                                                                                      ","PTO ORDAZ EDO.BOLIVAR.","J315931990  "]
["Cliente 6","Empresa 6","Direccion 6","Ciudad 6","Telefono 6"]
["Cliente 7","Empresa 7","Direccion 7","Ciudad 7","Telefono 7"]
["Cliente 8","Empresa 8","Direccion 8","Ciudad 8","Telefono 8"]
["Cliente 9","Empresa 9","Direccion 9","Ciudad 9","Telefono 9"]
["Cliente 10","Empresa 10","Direccion 10","Ciudad 10","Telefono 10"]
["Cliente 11","Empresa 11","Direccion 11","Ciudad 11","Telefono 11"]
["Cliente 12","Empresa 12","Direccion 12","Ciudad 12","Telefono 12"]
["Cliente 13","Empresa 13","Direccion 13","Ciudad 13","Telefono 13"]
["Cliente 14","Empresa 14","Direccion 14","Ciudad 14","Telefono 14"]

{"sheet":"Producto","index":6,"n_rows":14,"n_cols":5,"rows_kept":14,"cut":false,"hidden":false,"merged":[]}
["CODIGO","DESCRIPCION","P. UNITARIO","DOLARES","62,18"]
[1001,"ASISTENCIA TECNICA REVISION DE ESTACION DE TRABAJO PC",20,60]
[1002,"INSTALACION Y CONFIGURACION DE ESTACION DE TRABAJO",30,30]
[1003,"ASISTNCIA TECNICA MANTENIMIENTO PRECENTIVO HARDWARE",20,20]
[1004,"RECONFUGURACION SERVIDOR SAFELIX FECHA: 02/12/2024",90,90]
[1005,"CREACION DE IMAGEN DE SISTEMA OPERTATIVO ESTACION BACTERIOLOGIA FECHA: 04/10/2024",50]
[1006,"Producto 6",{"$f":"tblProductos[[#This Row],[DOLARES]]*tblProductos[[#Headers],[62,18]]","v":0}]
[1007,"Producto 7",{"$f":"tblProductos[[#This Row],[DOLARES]]*tblProductos[[#Headers],[62,18]]","v":0}]
[1008,"Producto 8",{"$f":"tblProductos[[#This Row],[DOLARES]]*tblProductos[[#Headers],[62,18]]","v":0}]
[1009,"Producto 9",{"$f":"tblProductos[[#This Row],[DOLARES]]*tblProductos[[#Headers],[62,18]]","v":0}]
[1010,"Producto 10",{"$f":"tblProductos[[#This Row],[DOLARES]]*tblProductos[[#Headers],[62,18]]","v":0}]
[1011,"Producto 11",{"$f":"tblProductos[[#This Row],[DOLARES]]*tblProductos[[#Headers],[62,18]]","v":0}]
[1012,"Producto 12",{"$f":"tblProductos[[#This Row],[DOLARES]]*tblProductos[[#Headers],[62,18]]","v":0}]
[1013,"Producto 13",{"$f":"tblProductos[[#This Row],[DOLARES]]*tblProductos[[#Headers],[62,18]]","v":0}]